[Event "NJSK 2024 C"]
[Site "Groningen, Netherlands"]
[Date "2024.04.28"]
[Round "2.9"]
[White "Guillaumond, Matthieu"]
[Black "De Wit, Evan"]
[Result "1/2-1/2"]
[TimeControl "90min/40moves + 30min + 30sec/move"]
[WhiteElo "1945"]
[BlackElo "1769"]

1. e4 {[%clk 01:30:57]} {[%emt 00:00:02]} c5 {[%clk 01:31:00]} 2. c3 {[%clk
01:31:06]} {[%emt 00:00:22]} d5 {[%clk 01:31:26]} {[%emt 00:00:03]} 3. exd5
{[%clk 01:31:32]} {[%emt 00:00:05]} Qxd5 {[%clk 01:31:51]} {[%emt 00:00:04]} 4.
d4 {[%clk 01:31:58]} {[%emt 00:00:05]} e6 {[%clk 01:32:17]} {[%emt 00:00:03]} 5.
Na3 {[%clk 01:32:23]} {[%emt 00:00:05]} Nf6 {[%clk 01:32:20]} {[%emt 00:00:27]}
6. Nf3 {[%clk 01:32:46]} {[%emt 00:00:08]} a6 {[%clk 01:32:42]} {[%emt
00:00:08]} 7. Nc4 {[%clk 01:33:10]} {[%emt 00:00:05]} Nbd7 {[%clk 01:33:07]}
{[%emt 00:00:05]} 8. Ne3 {[%clk 01:31:22]} {[%emt 00:02:17]} Qd6 {[%clk
01:33:21]} {[%emt 00:00:17]} 9. Bd3 {[%clk 01:30:23]} {[%emt 00:01:29]} b6
{[%clk 01:33:07]} {[%emt 00:00:44]} 10. b3 {[%clk 01:28:31]} {[%emt 00:02:23]}
Bb7 {[%clk 01:32:15]} {[%emt 00:01:21]} 11. Bb2 {[%clk 01:28:21]} {[%emt
00:00:40]} Be7 {[%clk 01:31:56]} {[%emt 00:00:49]} 12. O-O {[%clk 01:27:55]}
{[%emt 00:00:56]} O-O {[%clk 01:32:16]} {[%emt 00:00:10]} 13. Re1 {[%clk
01:21:09]} {[%emt 00:07:15]} Rfd8 {[%clk 01:24:50]} {[%emt 00:07:57]} 14. Qe2
{[%clk 01:17:41]} {[%emt 00:03:58]} Nh5 {[%clk 01:18:29]} {[%emt 00:06:50]} 15.
Nf5 {[%emt 00:18:53]} Nf4 {[%clk 01:10:29]} 16. Nxd6 {[%clk 01:06:06]} {[%emt
00:02:11]} Nxe2+ {[%clk 01:10:19]} {[%emt 00:00:41]} 17. Bxe2 {[%clk 01:04:09]}
{[%emt 00:02:27]} Bxd6 {[%clk 01:10:40]} {[%emt 00:00:09]} 18. Rad1 {[%clk
01:03:48]} {[%emt 00:00:51]} Rac8 {[%clk 01:09:00]} {[%emt 00:02:10]} 19. c4
{[%clk 01:01:55]} {[%emt 00:02:23]} cxd4 {[%clk 01:08:46]} {[%emt 00:00:44]} 20.
Nxd4 {[%clk 00:59:49]} {[%emt 00:02:37]} Bb4 {[%clk 01:08:43]} {[%emt
00:00:32]} 21. Rf1 {[%clk 00:59:55]} {[%emt 00:00:24]} Be7 {[%clk 01:08:08]}
{[%emt 00:01:05]} 22. Nc2 {[%clk 00:43:36]} {[%emt 00:16:48]} Be4 {[%clk
01:01:31]} {[%emt 00:07:08]} 23. Ne3 {[%clk 00:42:23]} {[%emt 00:01:43]} Bb7
{[%clk 00:48:44]} {[%emt 00:13:17]} 24. f3 {[%clk 00:38:41]} {[%emt 00:04:12]}
Bc5 {[%clk 00:40:25]} {[%emt 00:08:49]} 25. Bd4 {[%clk 00:38:26]} {[%emt
00:00:45]} Nb8 {[%clk 00:39:30]} {[%emt 00:01:26]} 26. Bxc5 {[%clk 00:38:18]}
{[%emt 00:00:38]} bxc5 {[%clk 00:39:54]} {[%emt 00:00:06]} 27. Bd3 {[%clk
00:36:25]} {[%emt 00:02:22]} Nc6 {[%clk 00:39:35]} {[%emt 00:00:49]} 28. Be4
{[%clk 00:36:14]} {[%emt 00:00:41]} Kf8 {[%clk 00:36:04]} {[%emt 00:04:02]} 29.
Bxc6 {[%clk 00:35:21]} {[%emt 00:01:22]} Bxc6 {[%clk 00:36:27]} {[%emt
00:00:07]} 30. Rxd8+ {[%clk 00:34:07]} {[%emt 00:01:44]} Rxd8 {[%clk 00:36:50]}
{[%emt 00:00:08]} 31. Rd1 {[%clk 00:34:32]} {[%emt 00:00:05]} Rc8 {[%clk
00:36:33]} {[%emt 00:00:47]} 32. Rb1 {[%clk 00:31:20]} {[%emt 00:03:41]} a5
{[%clk 00:36:53]} {[%emt 00:00:10]} 33. Kf2 {[%clk 00:29:27]} {[%emt 00:02:23]}
Rb8 {[%clk 00:35:27]} {[%emt 00:01:56]} 34. Nc2 {[%clk 00:29:41]} {[%emt
00:00:16]} Ke7 {[%clk 00:33:09]} {[%emt 00:02:48]} 35. Ke2 {[%clk 00:29:39]}
{[%emt 00:00:32]} e5 {[%clk 00:31:19]} {[%emt 00:02:21]} 36. Kd3 {[%clk
00:23:56]} {[%emt 00:06:13]} Rd8+ {[%clk 00:26:29]} {[%emt 00:05:20]} 37. Kc3
{[%clk 00:24:06]} {[%emt 00:00:19]} e4 {[%clk 00:26:44]} {[%emt 00:00:15]} 38.
Ne1 {[%clk 00:16:43]} {[%emt 00:07:50]} f5 {[%clk 00:20:34]} {[%emt 00:06:43]}
39. Rb2 {[%clk 00:15:39]} {[%emt 00:01:35]} Rd1 {[%clk 00:19:51]} {[%emt
00:01:12]} 40. Re2 {[%clk 00:16:00]} {[%emt 00:00:08]} Ke6 {[%clk 00:19:16]}
{[%emt 00:01:06]} 41. fxe4 {[%clk 00:14:44]} {[%emt 00:01:47]} Bxe4 {[%clk
00:18:19]} {[%emt 00:01:27]} 42. Nf3 {[%clk 00:13:10]} {[%emt 00:02:02]} Kf6
{[%clk 00:16:14]} {[%emt 00:02:37]} 43. Nd2 {[%clk 00:12:51]} {[%emt 00:00:49]}
Rc1+ {[%clk 00:16:30]} {[%emt 00:00:14]} 44. Kb2 {[%clk 00:13:12]} {[%emt
00:00:09]} Rc2+ {[%clk 00:16:48]} {[%emt 00:00:12]} 45. Ka3 {[%clk 00:09:03]}
{[%emt 00:04:40]} Bc6 {[%clk 00:15:46]} {[%emt 00:01:32]} 46. h4 {[%clk
00:07:08]} {[%emt 00:02:23]} h5 {[%clk 00:13:18]} {[%emt 00:02:58]} 47. Rf2
{[%clk 00:06:48]} {[%emt 00:00:51]} g6 {[%clk 00:13:22]} {[%emt 00:00:26]} 48.
g3 {[%clk 00:06:13]} {[%emt 00:01:05]} 1/2-1/2

[Event "NJSK 2024 C"]
[Site "Groningen, Netherlands"]
[Date "2024.04.28"]
[Round "2.10"]
[White "Roorda, Cas"]
[Black "Winter, Sven"]
[Result "1-0"]
[TimeControl "90min/40moves + 30min + 30sec/move"]
[WhiteElo "1828"]
[BlackElo "1768"]

1. e4 {[%clk 01:30:58]} {[%emt 00:00:02]} c6 {[%clk 01:27:58]} {[%emt
00:03:02]} 2. d4 {[%clk 01:31:25]} {[%emt 00:00:03]} d5 {[%clk 01:28:06]}
{[%emt 00:00:21]} 3. e5 {[%clk 01:31:51]} {[%emt 00:00:04]} c5 {[%clk
01:28:31]} {[%emt 00:00:06]} 4. c3 {[%clk 01:32:18]} {[%emt 00:00:03]} Nc6
{[%clk 01:28:54]} {[%emt 00:00:06]} 5. Be2 {[%clk 01:32:45]} {[%emt 00:00:03]}
cxd4 {[%clk 01:29:14]} {[%emt 00:00:09]} 6. cxd4 {[%clk 01:33:06]} {[%emt
00:00:11]} Bf5 {[%clk 01:28:00]} {[%emt 00:01:43]} 7. Nc3 {[%clk 01:33:30]}
{[%emt 00:00:06]} e6 {[%clk 01:28:22]} {[%emt 00:00:08]} 8. Be3 {[%clk
01:33:56]} {[%emt 00:00:04]} Nge7 {[%clk 01:28:00]} {[%emt 00:00:52]} 9. Rc1
{[%clk 01:34:12]} {[%emt 00:00:14]} a6 {[%clk 01:28:13]} {[%emt 00:00:16]} 10.
g4 {[%clk 01:33:09]} {[%emt 00:01:34]} Bg6 {[%clk 01:28:00]} {[%emt 00:00:42]}
11. h4 {[%clk 01:33:03]} {[%emt 00:00:37]} h6 {[%clk 01:23:47]} {[%emt
00:04:43]} 12. h5 {[%clk 01:32:38]} {[%emt 00:00:56]} Bh7 {[%clk 01:23:26]}
{[%emt 00:00:50]} 13. f4 {[%clk 01:32:15]} {[%emt 00:00:53]} Nc8 {[%clk
01:20:08]} {[%emt 00:03:48]} 14. Nh3 {[%clk 01:26:41]} {[%emt 00:06:05]} Be7
{[%clk 01:19:29]} {[%emt 00:01:07]} 15. O-O {[%clk 01:26:05]} {[%emt 00:01:07]}
Nb6 {[%clk 01:08:41]} {[%emt 00:11:17]} 16. Rf2 {[%clk 01:12:46]} {[%emt
00:13:51]} Na5 {[%clk 01:05:54]} {[%emt 00:03:16]} 17. Bd3 {[%clk 01:04:54]}
{[%emt 00:08:22]} Bxd3 {[%clk 01:01:48]} {[%emt 00:04:35]} 18. Qxd3 {[%clk
01:05:21]} {[%emt 00:00:04]} Nbc4 {[%clk 00:59:31]} {[%emt 00:02:46]} 19. b3
{[%clk 00:59:00]} {[%emt 00:06:52]} Nxe3 {[%clk 00:56:46]} {[%emt 00:03:14]} 20.
Qxe3 {[%clk 00:59:19]} {[%emt 00:00:12]} Rc8 {[%clk 00:55:41]} {[%emt
00:01:33]} 21. f5 {[%clk 00:52:40]} {[%emt 00:07:11]} Bg5 {[%clk 00:51:24]}
{[%emt 00:04:47]} 22. Nxg5 {[%clk 00:52:49]} {[%emt 00:00:21]} Qxg5 {[%clk
00:51:43]} {[%emt 00:00:11]} 23. Qxg5 {[%clk 00:40:39]} {[%emt 00:12:40]} hxg5
{[%clk 00:51:45]} {[%emt 00:00:28]} 24. f6 {[%clk 00:32:20]} {[%emt 00:08:50]}
g6 {[%clk 00:46:40]} {[%emt 00:05:34]} 25. hxg6 {[%clk 00:28:29]} {[%emt
00:04:21]} fxg6 {[%clk 00:46:51]} {[%emt 00:00:18]} 26. Kg2 {[%clk 00:22:21]}
{[%emt 00:06:39]} Kf7 {[%clk 00:44:20]} {[%emt 00:03:00]} 27. Kg3 {[%clk
00:21:15]} {[%emt 00:01:38]} Nc6 {[%clk 00:43:45]} {[%emt 00:01:04]} 28. Rd2
{[%clk 00:16:41]} {[%emt 00:05:04]} Rh4 {[%clk 00:40:27]} {[%emt 00:03:47]} 29.
Nd1 {[%clk 00:14:49]} {[%emt 00:02:23]} Rch8 {[%clk 00:38:28]} {[%emt
00:02:28]} 30. Nf2 {[%clk 00:15:03]} {[%emt 00:00:17]} Ke8 {[%clk 00:31:51]}
{[%emt 00:07:07]} 31. Rdc2 {[%clk 00:14:29]} {[%emt 00:01:05]} Kd7 {[%clk
00:31:17]} {[%emt 00:01:03]} 32. b4 {[%clk 00:13:37]} {[%emt 00:01:23]} Kc7
{[%clk 00:30:58]} {[%emt 00:00:47]} 33. a3 {[%clk 00:12:02]} {[%emt 00:02:06]}
Kb6 {[%clk 00:30:50]} {[%emt 00:00:37]} 34. Rd2 {[%clk 00:11:42]} {[%emt
00:00:51]} R8h7 {[%clk 00:26:25]} {[%emt 00:04:55]} 35. Rb1 {[%clk 00:08:38]}
{[%emt 00:03:35]} Na7 {[%clk 00:18:52]} {[%emt 00:08:02]} 36. Rd3 {[%clk
00:07:30]} {[%emt 00:01:38]} Kb5 {[%clk 00:16:40]} {[%emt 00:02:40]} 37. Rf3
{[%clk 00:06:30]} {[%emt 00:01:32]} Rf7 {[%clk 00:08:34]} {[%emt 00:08:35]} 38.
Nh3 {[%clk 00:06:47]} {[%emt 00:00:14]} Rxh3+ {[%clk 00:08:28]} {[%emt
00:00:35]} 39. Kxh3 {[%clk 00:07:14]} {[%emt 00:00:04]} Kc4 {[%clk 00:07:18]}
{[%emt 00:01:40]} 40. Rd1 {[%clk 00:07:18]} {[%emt 00:00:27]} Nb5 {[%clk
00:07:27]} {[%emt 00:00:20]} 41. Rc1+ {[%clk 00:01:07]} {[%emt 00:06:41]} Kxd4
{[%clk 00:07:24]} {[%emt 00:00:34]} 42. a4 {[%clk 00:01:33]} {[%emt 00:00:04]}
Na7 {[%clk 00:05:29]} {[%emt 00:02:24]} 43. b5 {[%clk 00:00:41]} {[%emt
00:01:22]} axb5 {[%clk 00:05:12]} {[%emt 00:00:47]} 44. axb5 {[%clk 00:01:00]}
{[%emt 00:00:12]} Kxe5 {[%clk 00:04:57]} {[%emt 00:00:43]} 45. b6 {[%clk
00:01:27]} {[%emt 00:00:04]} Nb5 {[%clk 00:04:22]} {[%emt 00:01:05]} 46. Rc7
{[%clk 00:01:45]} {[%emt 00:00:12]} Nxc7 {[%clk 00:01:49]} {[%emt 00:03:03]} 47.
bxc7 {[%clk 00:02:11]} {[%emt 00:00:05]} Rxc7 {[%clk 00:02:10]} {[%emt
00:00:09]} 48. f7 {[%clk 00:02:38]} {[%emt 00:00:03]} Rc8 {[%clk 00:02:32]}
{[%emt 00:00:07]} 49. f8=Q {[%clk 00:02:59]} {[%emt 00:00:10]} Rxf8 {[%clk
00:02:53]} {[%emt 00:00:08]} 50. Rxf8 {[%clk 00:03:23]} {[%emt 00:00:07]} Ke4
{[%clk 00:01:01]} {[%emt 00:02:21]} 51. Kg2 {[%clk 00:02:06]} {[%emt 00:01:46]}
e5 {[%clk 00:00:49]} {[%emt 00:00:42]} 52. Kf2 {[%clk 00:02:08]} {[%emt
00:00:29]} d4 {[%clk 00:01:11]} {[%emt 00:00:08]} 53. Ke2 {[%clk 00:01:54]}
{[%emt 00:00:44]} b5 {[%clk 00:01:34]} {[%emt 00:00:07]} 54. Rf6 {[%clk
00:01:06]} {[%emt 00:01:19]} Kd5 {[%clk 00:01:03]} {[%emt 00:01:00]} 55. Rxg6
{[%clk 00:01:08]} {[%emt 00:00:29]} e4 {[%clk 00:00:59]} {[%emt 00:00:34]} 56.
Rxg5+ {[%clk 00:01:33]} {[%emt 00:00:04]} Kc4 {[%clk 00:01:16]} {[%emt
00:00:13]} 57. Rg8 {[%clk 00:01:00]} {[%emt 00:01:04]} e3 {[%clk 00:01:14]}
{[%emt 00:00:31]} 58. Rc8+ {[%clk 00:01:17]} {[%emt 00:00:12]} Kd5 {[%clk
00:01:36]} {[%emt 00:00:09]} 59. Kd3 {[%clk 00:01:39]} {[%emt 00:00:08]} Ke5
{[%clk 00:01:45]} {[%emt 00:00:21]} 60. Re8+ {[%clk 00:01:44]} {[%emt
00:00:26]} Kf4 {[%clk 00:01:58]} {[%emt 00:00:16]} 61. Kxd4 {[%clk 00:02:08]}
{[%emt 00:00:06]} Kxg4 {[%clk 00:02:20]} {[%emt 00:00:08]} 62. Kxe3 {[%clk
00:02:29]} {[%emt 00:00:10]} b4 {[%clk 00:02:44]} {[%emt 00:00:05]} 63. Rb8
{[%clk 00:02:54]} {[%emt 00:00:06]} b3 {[%clk 00:03:04]} {[%emt 00:00:09]} 64.
Rxb3 {[%clk 00:03:20]} {[%emt 00:00:04]} Kg3 {[%clk 00:03:28]} {[%emt
00:00:06]} 65. Rb8 {[%clk 00:03:44]} {[%emt 00:00:06]} Kg4 {[%clk 00:03:52]}
{[%emt 00:00:05]} 66. Rf8 {[%clk 00:04:11]} {[%emt 00:00:04]} 1-0

[Event "NJSK 2024 C"]
[Site "Groningen, Netherlands"]
[Date "2024.04.28"]
[Round "2.11"]
[White "Okita, Shinsaku"]
[Black "Frederiks, Jesse"]
[Result "1-0"]
[TimeControl "90min/40moves + 30min + 30sec/move"]
[WhiteElo "1826"]
[BlackElo "1718"]

1. e4 {[%clk 01:30:58]} {[%emt 00:00:02]} Nf6 {[%clk 01:30:29]} {[%emt
00:00:31]} 2. e5 {[%clk 01:30:25]} {[%emt 00:01:03]} Nd5 {[%clk 01:30:54]}
{[%emt 00:00:05]} 3. d4 {[%clk 01:27:49]} {[%emt 00:03:06]} d6 {[%clk
01:31:15]} {[%emt 00:00:09]} 4. c4 {[%clk 01:27:08]} {[%emt 00:01:11]} Nb6
{[%clk 01:31:37]} {[%emt 00:00:08]} 5. Nc3 {[%clk 01:19:01]} {[%emt 00:08:37]}
g6 {[%clk 01:29:27]} {[%emt 00:02:39]} 6. h3 {[%clk 01:18:16]} {[%emt
00:01:16]} dxe5 {[%clk 01:25:01]} {[%emt 00:04:56]} 7. dxe5 {[%clk 01:17:55]}
{[%emt 00:00:51]} Qxd1+ {[%clk 01:25:23]} {[%emt 00:00:08]} 8. Nxd1 {[%clk
01:18:19]} {[%emt 00:00:06]} Bg7 {[%clk 01:24:34]} {[%emt 00:01:18]} 9. f4
{[%clk 01:18:22]} {[%emt 00:00:28]} Nc6 {[%clk 01:20:23]} {[%emt 00:04:41]} 10.
Nf3 {[%clk 01:16:31]} {[%emt 00:02:21]} Be6 {[%clk 01:16:45]} {[%emt 00:04:07]}
11. Ne3 {[%clk 01:10:28]} {[%emt 00:06:34]} f6 {[%clk 00:56:38]} {[%emt
00:20:37]} 12. b3 {[%clk 01:05:26]} {[%emt 00:05:33]} fxe5 {[%clk 00:49:24]}
{[%emt 00:07:43]} 13. Bb2 {[%clk 01:05:18]} {[%emt 00:00:37]} O-O {[%clk
00:43:02]} {[%emt 00:06:52]} 14. fxe5 {[%clk 01:02:48]} {[%emt 00:03:00]} Rad8
{[%clk 00:36:55]} {[%emt 00:06:37]} 15. Be2 {[%clk 01:01:33]} {[%emt 00:01:46]}
Kh8 {[%clk 00:34:56]} {[%emt 00:02:28]} 16. O-O {[%clk 00:57:58]} {[%emt
00:04:05]} Nd7 {[%clk 00:22:56]} {[%emt 00:12:31]} 17. Rad1 {[%clk 00:35:27]}
{[%emt 00:23:01]} Ndxe5 {[%clk 00:18:45]} {[%emt 00:04:40]} 18. Nxe5 {[%clk
00:30:28]} {[%emt 00:05:29]} Bxe5 {[%clk 00:18:25]} {[%emt 00:00:50]} 19. Bxe5+
{[%clk 00:28:26]} {[%emt 00:02:32]} Nxe5 {[%clk 00:18:50]} {[%emt 00:00:05]} 20.
Rxf8+ {[%clk 00:28:25]} {[%emt 00:00:32]} Rxf8 {[%clk 00:19:14]} {[%emt
00:00:06]} 21. Nd5 {[%clk 00:28:10]} {[%emt 00:00:45]} c6 {[%clk 00:18:04]}
{[%emt 00:01:39]} 22. Nc3 {[%clk 00:24:51]} {[%emt 00:03:50]} Kg7 {[%clk
00:15:10]} {[%emt 00:03:23]} 23. Re1 {[%clk 00:23:49]} {[%emt 00:01:32]} Nd7
{[%clk 00:12:52]} {[%emt 00:02:48]} 24. Bd3 {[%clk 00:23:31]} {[%emt 00:00:49]}
Kf7 {[%clk 00:08:15]} {[%emt 00:05:06]} 25. Ne4 {[%clk 00:23:09]} {[%emt
00:00:52]} h6 {[%clk 00:07:14]} {[%emt 00:01:31]} 26. Nc3 {[%clk 00:22:20]}
{[%emt 00:01:20]} Rg8 {[%clk 00:04:48]} {[%emt 00:02:55]} 27. Kf2 {[%clk
00:21:43]} {[%emt 00:01:08]} Nf6 {[%clk 00:04:27]} {[%emt 00:00:51]} 28. g4
{[%clk 00:20:28]} {[%emt 00:01:44]} Bc8 {[%clk 00:04:06]} {[%emt 00:00:51]} 29.
Ke3 {[%clk 00:17:22]} {[%emt 00:03:36]} Re8 {[%clk 00:03:29]} {[%emt 00:01:06]}
30. Rf1 {[%clk 00:16:21]} {[%emt 00:01:32]} Kg7 {[%clk 00:03:35]} {[%emt
00:00:24]} 31. Ne2 {[%clk 00:15:41]} {[%emt 00:01:11]} e5 {[%clk 00:03:43]}
{[%emt 00:00:21]} 32. Ng3 {[%clk 00:15:26]} {[%emt 00:00:45]} Bd7 {[%clk
00:02:47]} {[%emt 00:01:27]} 33. Be4 {[%clk 00:15:11]} {[%emt 00:00:45]} Nxe4
{[%clk 00:02:05]} {[%emt 00:01:12]} 34. Nxe4 {[%clk 00:15:35]} {[%emt
00:00:06]} Be6 {[%clk 00:01:51]} {[%emt 00:00:44]} 35. Nd6 {[%clk 00:14:42]}
{[%emt 00:01:23]} Re7 {[%clk 00:02:13]} {[%emt 00:00:07]} 36. Rf2 {[%clk
00:14:22]} {[%emt 00:00:51]} b6 {[%clk 00:01:58]} {[%emt 00:00:45]} 37. Ke4
{[%clk 00:14:13]} {[%emt 00:00:38]} a6 {[%clk 00:01:52]} {[%emt 00:00:37]} 38.
b4 {[%clk 00:14:01]} {[%emt 00:00:42]} c5 {[%clk 00:01:42]} {[%emt 00:00:39]}
39. a3 {[%clk 00:14:15]} {[%emt 00:00:17]} b5 {[%clk 00:01:43]} {[%emt
00:00:29]} 40. cxb5 {[%clk 00:14:24]} {[%emt 00:00:21]} cxb4 {[%clk 00:02:05]}
{[%emt 00:00:08]} 41. b6 {[%clk 00:14:32]} {[%emt 00:00:22]} Rd7 {[%clk
00:01:16]} {[%emt 00:01:18]} 42. b7 {[%clk 00:12:52]} {[%emt 00:02:10]} Rd8
{[%clk 00:01:36]} {[%emt 00:00:10]} 43. Kxe5 {[%clk 00:12:34]} {[%emt
00:00:49]} Bd5 {[%clk 00:00:45]} {[%emt 00:01:21]} 44. Kxd5 {[%clk 00:12:48]}
{[%emt 00:00:16]} bxa3 {[%clk 00:00:51]} {[%emt 00:00:24]} 45. Kc6 {[%clk
00:13:05]} {[%emt 00:00:13]} a2 {[%clk 00:00:49]} {[%emt 00:00:32]} 46. Rxa2
{[%clk 00:13:30]} {[%emt 00:00:05]} Rb8 {[%clk 00:01:07]} {[%emt 00:00:12]} 47.
Kc7 {[%clk 00:13:55]} {[%emt 00:00:05]} h5 {[%clk 00:01:25]} {[%emt 00:00:12]}
48. Kxb8 {[%clk 00:14:19]} {[%emt 00:00:05]} hxg4 {[%clk 00:01:49]} {[%emt
00:00:06]} 49. Ka7 {[%clk 00:14:31]} {[%emt 00:00:19]} gxh3 {[%clk 00:02:13]}
{[%emt 00:00:05]} 50. b8=Q {[%clk 00:14:53]} {[%emt 00:00:08]} h2 {[%clk
00:02:36]} {[%emt 00:00:07]} 51. Rf2 {[%clk 00:14:26]} {[%emt 00:00:58]} Kh6
{[%clk 00:02:27]} {[%emt 00:00:38]} 52. Ne4 {[%clk 00:14:38]} {[%emt 00:00:18]}
Kh5 {[%clk 00:02:37]} {[%emt 00:00:19]} 53. Rg2 {[%clk 00:15:02]} {[%emt
00:00:07]} g5 {[%clk 00:02:52]} {[%emt 00:00:15]} 54. Rxg5+ {[%clk 00:15:26]}
{[%emt 00:00:07]} Kh4 {[%clk 00:03:07]} {[%emt 00:00:14]} 55. Qh8# {[%clk
00:15:51]} {[%emt 00:00:05]} 1-0

[Event "NJSK 2024 C"]
[Site "Groningen, Netherlands"]
[Date "2024.04.28"]
[Round "2.12"]
[White "Kors, Siebe"]
[Black "Haque, Nishaaz"]
[Result "0-1"]
[TimeControl "90min/40moves + 30min + 30sec/move"]
[WhiteElo "1668"]
[BlackElo "1803"]

1. e4 {[%clk 01:30:35]} {[%emt 00:00:03]} c5 {[%clk 01:30:52]} {[%emt
00:00:29]} 2. d4 {[%clk 01:29:27]} {[%emt 00:01:39]} cxd4 {[%clk 01:31:13]}
{[%emt 00:00:09]} 3. Qxd4 {[%clk 01:29:47]} {[%emt 00:00:09]} Nc6 {[%clk
01:31:34]} {[%emt 00:00:10]} 4. Qd1 {[%clk 01:29:51]} {[%emt 00:00:26]} Nf6
{[%clk 01:30:37]} {[%emt 00:01:27]} 5. Nc3 {[%clk 01:29:23]} {[%emt 00:00:58]}
e6 {[%clk 01:30:44]} {[%emt 00:00:23]} 6. a3 {[%clk 01:29:01]} {[%emt
00:00:52]} Bc5 {[%clk 01:30:38]} {[%emt 00:00:36]} 7. Bb5 {[%clk 01:27:09]}
{[%emt 00:02:21]} Qb6 {[%clk 01:29:45]} {[%emt 00:01:23]} 8. h3 {[%clk
01:18:50]} {[%emt 00:08:51]} Bxf2+ {[%clk 01:29:52]} {[%emt 00:00:22]} 9. Kf1
{[%clk 01:18:08]} {[%emt 00:01:11]} Bxg1 {[%clk 01:30:07]} {[%emt 00:00:16]} 10.
Rxg1 {[%clk 01:17:53]} {[%emt 00:00:44]} Nxe4 {[%clk 01:29:48]} {[%emt
00:00:50]} 11. Nxe4 {[%clk 01:17:40]} {[%emt 00:00:42]} Qxb5+ {[%clk 01:30:14]}
{[%emt 00:00:05]} 12. Ke1 {[%clk 01:15:45]} {[%emt 00:02:25]} Qe5 {[%clk
01:30:21]} {[%emt 00:00:18]} 13. Qf3 {[%clk 01:12:04]} {[%emt 00:04:15]} Nd4
{[%clk 01:30:06]} {[%emt 00:00:46]} 14. Qd3 {[%clk 01:11:28]} {[%emt 00:01:06]}
d5 {[%clk 01:30:19]} {[%emt 00:00:18]} 15. Be3 {[%clk 01:10:37]} {[%emt
00:01:20]} Nc6 {[%clk 01:30:02]} {[%emt 00:00:47]} 16. Nf2 {[%clk 01:06:20]}
{[%emt 00:04:44]} Qxb2 {[%clk 01:28:52]} {[%emt 00:01:43]} 17. Rd1 {[%clk
01:06:00]} {[%emt 00:00:50]} Ne5 {[%clk 01:26:45]} {[%emt 00:02:35]} 18. Qd4
{[%clk 01:01:32]} {[%emt 00:04:59]} Qxd4 {[%clk 01:27:04]} {[%emt 00:00:12]} 19.
Bxd4 {[%clk 01:01:22]} {[%emt 00:00:39]} f6 {[%clk 01:27:27]} {[%emt 00:00:08]}
20. Bxe5 {[%clk 01:01:12]} {[%emt 00:00:39]} fxe5 {[%clk 01:26:33]} {[%emt
00:01:25]} 21. g4 {[%clk 01:00:40]} {[%emt 00:01:02]} O-O {[%clk 01:26:39]}
{[%emt 00:00:24]} 22. h4 {[%clk 01:00:43]} {[%emt 00:00:27]} Bd7 {[%clk
01:26:50]} {[%emt 00:00:19]} 23. Nd3 {[%clk 00:59:21]} {[%emt 00:01:52]} e4
{[%clk 01:27:16]} {[%emt 00:00:03]} 24. Nc5 {[%clk 00:59:00]} {[%emt 00:00:51]}
Bc8 {[%clk 01:27:31]} {[%emt 00:00:15]} 25. h5 {[%clk 00:58:13]} {[%emt
00:01:17]} b6 {[%clk 01:27:52]} {[%emt 00:00:10]} 26. Nb3 {[%clk 00:57:49]}
{[%emt 00:00:54]} Ba6 {[%clk 01:27:59]} {[%emt 00:00:21]} 27. Nd4 {[%clk
00:56:29]} {[%emt 00:01:52]} e5 {[%clk 01:27:03]} {[%emt 00:01:25]} 28. Nc6
{[%clk 00:55:28]} {[%emt 00:01:31]} d4 {[%clk 01:26:53]} {[%emt 00:00:40]} 29.
Nxe5 {[%clk 00:54:33]} {[%emt 00:01:26]} Rfe8 {[%clk 01:26:23]} {[%emt
00:01:00]} 30. Nc6 {[%clk 00:54:08]} {[%emt 00:00:55]} d3 {[%clk 01:26:34]}
{[%emt 00:00:20]} 31. Nb4 {[%clk 00:50:38]} {[%emt 00:03:59]} dxc2 {[%clk
01:26:21]} {[%emt 00:00:43]} 32. Nxc2 {[%clk 00:49:48]} {[%emt 00:01:19]} Rad8
{[%clk 01:24:12]} {[%emt 00:02:39]} 33. Nb4 {[%clk 00:47:43]} {[%emt 00:02:36]}
Bb5 {[%clk 01:23:02]} {[%emt 00:01:38]} 34. Rxd8 {[%clk 00:47:00]} {[%emt
00:01:15]} Rxd8 {[%clk 01:23:24]} {[%emt 00:00:09]} 35. Kf2 {[%clk 00:47:01]}
{[%emt 00:00:29]} a5 {[%clk 01:23:29]} {[%emt 00:00:25]} 36. a4 {[%clk
00:45:07]} {[%emt 00:02:24]} Bxa4 {[%clk 01:22:16]} {[%emt 00:01:41]} 37. Na6
{[%clk 00:45:11]} {[%emt 00:00:27]} Bb5 {[%clk 01:16:14]} {[%emt 00:06:33]} 38.
Nc7 {[%clk 00:44:45]} {[%emt 00:00:56]} Bc4 {[%clk 01:16:40]} {[%emt 00:00:04]}
39. Rc1 {[%clk 00:43:21]} {[%emt 00:01:54]} b5 {[%clk 01:16:59]} {[%emt
00:00:11]} 40. Ke3 {[%clk 00:43:39]} {[%emt 00:00:11]} Kf7 {[%clk 01:15:57]}
{[%emt 00:01:32]} 41. Kxe4 {[%clk 00:43:02]} {[%emt 00:01:07]} Rc8 {[%clk
01:16:22]} {[%emt 00:00:05]} 42. Ra1 {[%clk 00:40:15]} {[%emt 00:03:17]} Rxc7
{[%clk 01:16:39]} {[%emt 00:00:14]} 43. Rxa5 {[%clk 00:40:17]} {[%emt
00:00:28]} Rb7 {[%clk 01:17:02]} {[%emt 00:00:07]} 44. Kd4 {[%clk 00:40:39]}
{[%emt 00:00:07]} Be2 {[%clk 01:17:26]} {[%emt 00:00:06]} 45. Ra2 {[%clk
00:40:40]} {[%emt 00:00:30]} Bxg4 {[%clk 01:17:42]} {[%emt 00:00:14]} 46. Rf2+
{[%clk 00:39:39]} {[%emt 00:01:30]} Ke6 {[%clk 01:17:44]} {[%emt 00:00:28]} 47.
h6 {[%clk 00:37:44]} {[%emt 00:02:26]} gxh6 {[%clk 01:17:47]} {[%emt 00:00:26]}
48. Rf4 {[%clk 00:37:05]} {[%emt 00:01:09]} Rc7 {[%clk 01:16:57]} {[%emt
00:01:20]} 49. Re4+ {[%clk 00:35:57]} {[%emt 00:01:38]} Kf6 {[%clk 01:17:09]}
{[%emt 00:00:14]} 50. Re1 {[%clk 00:35:44]} {[%emt 00:00:40]} b4 {[%clk
01:17:16]} {[%emt 00:00:31]} 51. Rf1+ {[%clk 00:35:36]} {[%emt 00:00:37]} Bf5
{[%clk 01:17:24]} {[%emt 00:00:21]} 52. Rh1 {[%clk 00:35:33]} {[%emt 00:00:34]}
b3 {[%clk 01:17:38]} {[%emt 00:00:17]} 53. Rxh6+ {[%clk 00:35:38]} {[%emt
00:00:22]} Bg6 {[%clk 01:18:02]} {[%emt 00:00:09]} 54. Rh3 {[%clk 00:34:40]}
{[%emt 00:01:23]} b2 {[%clk 01:18:28]} {[%emt 00:00:08]} 0-1